bitfinex/quotes_ETHUSD_20260308
["timestamp","ask_amount","ask_price","bid_price","bid_amount"]
[1772960770083,2.76719904,1959.0,1958.4,0.49999999]
[1772960773736,0.002,1958.9,1958.4,0.49999999]
[1772960783114,0.002,1958.9,1958.1,0.46295393]
[1772960783115,0.49695349,1958.6,1958.1,0.46295393]
[1772960784537,1.77344059,1958.5,1958.1,0.46295393]
[1772960785112,1.77344059,1958.5,1958.2,0.001]
[1772960786133,0.49695349,1958.4,1958.0,0.00253886]
[1772960786309,0.49695349,1958.4,1958.0,0.46549279]
[1772960786515,1.27661747,1958.3,1958.0,0.46549279]
[1772960787522,0.49695349,1958.2,1958.0,0.00253886]
[1772960787731,0.49695349,1958.2,1957.8,0.001]
[1772960788737,0.49695349,1958.0,1957.8,0.001]
[1772960790857,1.27674786,1958.1,1957.8,0.46395393]
[1772960791261,0.49695349,1958.1,1957.8,0.46395393]
[1772960792263,1.27661747,1958.3,1957.8,0.46395393]
[1772960792448,1.76812084,1958.3,1957.8,0.46395393]
[1772960792643,0.49150337,1958.2,1957.8,0.46395393]
[1772960794378,0.49150337,1958.0,1957.8,0.001]
[1772960796987,1.76831644,1958.0,1957.9,0.0011]
[1772960797189,0.49150337,1957.9,1957.7,0.001]
[1772960797485,0.49150337,1957.8,1957.7,0.001]
[1772960801153,2.78292743,1957.9,1957.7,0.001]
[1772960801366,3.2744308,1957.9,1957.7,0.001]
[1772960801886,0.49150337,1957.8,1957.5,0.50077018]
[1772960802053,3.27441206,1957.9,1957.5,0.50077018]
[1772960802254,1.506,1957.9,1957.6,0.49977018]
[1772960803862,2.78287864,1957.9,1957.6,0.49977018]
[1772960804068,1.506,1957.9,1957.6,0.49977018]
[1772960804883,1.506,1957.9,1957.7,0.49977018]
[1772960806987,2.78288464,1957.9,1957.7,0.49977018]
[1772960807296,3.27438801,1957.9,1957.6,0.49977018]
[1772960808693,0.49150337,1957.8,1957.5,1.27809431]
[1772960808894,0.49150337,1957.8,1957.5,1.77786449]
[1772960809295,1.506,1957.9,1957.6,0.49977018]
[1772960809503,2.78288379,1957.9,1957.6,0.49977018]
[1772960809804,2.78288379,1957.9,1957.8,0.0011]
[1772960810102,3.27438716,1957.9,1957.8,0.0011]
[1772960810573,3.27438165,1957.9,1957.8,0.0011]
[1772960821643,3.27438165,1957.9,1957.5,0.001]
[1772960821644,0.49150337,1957.8,1957.5,0.001]
[1772960821788,0.49150337,1957.7,1957.2,0.49977018]
[1772960821993,0.49150337,1957.5,1957.2,0.49977018]
[1772960822193,2.00350337,1957.5,1957.2,0.49977018]
[1772960824093,3.28067131,1957.5,1957.2,0.49977018]
[1772960826216,0.47461041,1957.4,1957.1,0.89207597]
[1772960828518,2.78914059,1957.5,1957.2,0.37622982]
[1772960829917,3.263751,1957.5,1957.2,0.37622982]
[1772960834034,3.263751,1957.5,1957.3,0.0011]
[1772960834435,0.001,1957.4,1957.3,0.0011]
[1772960847588,0.47461041,1957.7,1957.4,0.37522982]
[1772960847787,1.99261041,1957.7,1957.4,0.37522982]
[1772960849156,3.269625,1957.7,1957.4,0.37522982]
[1772960849359,0.47461041,1957.6,1957.3,0.0011]
[1772960851789,1.2771392,1957.5,1957.3,0.0011]
[1772960851987,1.75174961,1957.5,1957.3,0.0011]
[1772960852361,0.47461041,1957.4,1957.3,0.0011]
[1772960852562,0.47461041,1957.4,1957.1,0.51584615]
[1772960853765,0.49678077,1957.2,1956.8,0.37522982]
[1772960853960,1.77416417,1957.2,1956.8,0.37522982]
[1772960855502,1.77411683,1957.2,1956.9,0.37522982]
[1772960857296,2.01778077,1957.5,1957.0,0.37522982]
[1772960857479,0.49678077,1957.4,1957.0,0.37522982]
[1772960858181,1.77399328,1957.4,1957.0,0.37522982]
[1772960858381,0.001,1957.1,1957.0,0.37522982]
[1772960859496,0.001,1957.1,1957.0,1.65269532]
[1772960859695,0.001,1957.1,1957.0,1.2774655]
[1772960859884,0.001,1957.1,1956.9,1.27858007]
[1772960860076,0.001,1957.1,1957.0,0.37522982]
[1772960864511,0.001,1957.1,1956.9,1.65380989]
[1772960865107,0.001,1957.1,1957.0,0.37522982]
[1772960866313,0.001,1957.1,1957.0,1.65269532]
[1772960868815,0.001,1957.1,1957.0,0.37522982]
[1772960869215,3.481,1957.1,1957.0,1.65269532]
[1772960869510,0.001,1957.1,1957.0,1.65269532]
[1772960869686,0.001,1957.1,1956.9,1.27857883]
[1772960870812,0.49778077,1957.1,1956.9,1.27857883]
[1772960873413,0.49778077,1957.1,1956.9,0.0011]
[1772960879216,0.49678077,1957.0,1956.9,0.0011]
[1772960880652,1.77424627,1957.0,1956.6,0.37632982]
[1772960881687,1.77524627,1957.0,1956.6,0.37632982]
[1772960882091,1.77524627,1957.0,1956.9,0.0011]
[1772960882293,1.77524627,1957.0,1956.7,0.0011]
[1772960882915,1.77524627,1957.0,1956.6,0.37632982]
[1772960887671,0.49778077,1957.0,1956.6,1.65402952]
[1772960888348,1.77524672,1957.0,1956.6,1.65402952]
[1772960891851,0.49778077,1957.0,1956.7,0.37522982]
[1772960893900,0.49778077,1957.0,1956.7,1.65397643]
[1772960894109,0.001,1956.9,1956.7,1.65397643]
[1772960895870,0.001,1956.9,1956.7,0.37632982]
[1772960896508,0.47051518,1956.9,1956.7,0.0011]
[1772960898001,0.001,1956.9,1956.7,1.65398332]
[1772960899300,0.001,1956.9,1956.8,0.37522982]
[1772960900010,0.001,1956.9,1956.7,0.37632982]
[1772960902911,0.001,1956.9,1956.8,1.27759607]
[1772960903411,0.001,1956.9,1956.7,1.65394677]
[1772960906284,0.001,1956.9,1956.8,0.0011]
[1772960906609,0.001,1957.1,1957.0,0.37422982]
[1772960908829,0.47051518,1957.1,1956.8,0.37532982]
[1772960909011,0.47051518,1957.1,1956.8,0.0011]
[1772960909635,0.47051518,1957.1,1956.8,1.27868905]
[1772960910232,0.47051518,1957.1,1956.8,1.65291887]
[1772960918743,0.47051518,1957.1,1956.9,0.0011]
[1772960919047,0.001,1957.0,1956.9,0.0011]
[1772960920654,0.001,1957.0,1956.9,0.37532982]
[1772960920862,0.001,1957.1,1956.9,0.37532982]
[1772960921664,0.47206725,1957.1,1956.9,0.0011]
[1772960922187,0.001,1957.1,1956.9,0.37532982]
[1772960922676,0.001,1957.1,1957.0,0.37422982]
[1772960922977,0.47106725,1957.4,1957.0,0.37422982]
[1772960925269,0.47106725,1957.4,1957.0,1.65163911]
[1772960925466,0.47106725,1957.6,1957.1,0.37422982]
[1772960929596,0.47106725,1957.5,1957.1,1.65157162]
[1772960930088,0.47106725,1957.5,1957.2,0.37422982]
[1772960930289,0.47106725,1957.7,1957.2,0.37422982]
[1772960930684,0.001,1957.5,1957.2,0.37422982]
[1772960932493,0.001,1957.5,1957.2,1.65152305]
[1772960932799,0.001,1957.5,1957.3,0.37422982]
[1772960934993,0.001,1957.5,1957.3,1.65146753]
[1772960935909,0.001,1957.5,1957.2,1.27729882]
[1772960936204,0.47206725,1957.5,1956.9,0.0011]
[1772960936405,0.47206725,1957.5,1957.0,1.65169532]
[1772960936573,0.47206725,1957.5,1957.0,0.37422982]
[1772960936971,0.47206725,1957.5,1957.1,1.27740023]
[1772960937383,0.47106725,1957.4,1957.0,1.65165603]
[1772960942311,0.47106725,1957.4,1957.1,0.0011]
[1772960942511,0.47206725,1957.4,1957.1,0.0011]
[1772960942812,0.46259853,1957.3,1957.1,0.0011]
[1772960943513,0.001,1957.4,1957.1,0.37532982]
[1772960944880,0.001,1957.4,1957.1,1.65269517]
[1772960945303,0.001,1957.4,1957.2,0.37422982]
[1772960950309,0.48930954,1957.4,1957.1,0.37532982]
[1772960953086,0.48930954,1957.4,1957.1,1.65271992]
[1772960954212,0.48930954,1957.4,1957.2,0.0011]
[1772960954417,0.001,1957.3,1957.2,0.0011]
[1772960959693,0.48930954,1957.3,1957.2,0.0011]
[1772960960188,0.001,1957.3,1957.2,0.0011]
[1772960965099,0.001,1957.5,1957.3,0.37322982]
[1772960967402,0.48930954,1957.5,1957.2,0.0011]
[1772960969833,0.48830954,1957.4,1957.2,0.0011]
[1772960975534,0.45565538,1957.3,1957.2,0.0011]
[1772960976920,0.001,1957.5,1957.3,0.37322982]
[1772960977711,0.001,1957.5,1957.3,1.65049402]
[1772960977912,0.001,1957.5,1957.3,0.37322982]
[1772960978730,0.001,1957.5,1957.3,0.37432982]
[1772960980919,0.001,1957.5,1957.3,1.65158714]
[1772960981437,0.001,1957.5,1957.3,0.37432982]
[1772960982239,0.001,1957.5,1957.4,0.47222469]
[1772960982733,0.001,1957.5,1957.3,1.27832253]
[1772960982938,0.001,1957.5,1957.3,0.47332469]
[1772960983237,0.001,1957.8,1957.4,0.47222469]
[1772960983541,0.45665538,1957.8,1957.4,0.47222469]
[1772960985038,0.001,1957.8,1957.4,0.47222469]
[1772960985238,0.00153886,1958.0,1957.6,0.47222469]
[1772960990148,0.00153886,1958.0,1957.7,1.27700873]
[1772960990346,0.00153886,1958.0,1957.7,0.47222469]
[1772960990545,0.45719424,1958.0,1957.6,1.27703003]
[1772960990748,0.001,1957.9,1957.7,0.47222469]
[1772960990924,0.45665538,1957.9,1957.6,1.74925472]
[1772960991125,0.001,1957.9,1957.7,0.47222469]
[1772960991633,0.45665538,1957.9,1957.5,0.47222469]
[1772960992248,0.45665538,1957.9,1957.6,0.47222469]
[1772960992449,0.45665538,1957.9,1957.5,1.74932214]
[1772960992948,0.45665538,1957.9,1957.4,0.47222469]
[1772960993142,0.45665538,1957.9,1957.4,5.58103945]
[1772960993451,0.45665538,1957.9,1957.5,0.47222469]
[1772960995168,0.45565538,1957.8,1957.3,1.75055135]
[1772960995458,0.45565538,1957.8,1957.3,1.27832666]
[1772960995621,0.45565538,1957.8,1957.3,1.75055135]
[1772960996249,0.45565538,1957.8,1957.4,0.47222469]
[1772960998255,0.45565538,1957.8,1957.5,1.74936389]
[1772960998438,0.45665538,1957.9,1957.6,0.47222469]
[1772961000657,0.001,1957.9,1957.7,1.74923342]
[1772961001539,0.001,1957.9,1957.7,0.47222469]
[1772961001857,0.45665538,1957.9,1957.6,1.74924937]
[1772961002358,0.45665538,1957.9,1957.5,1.27710109]
[1772961002562,0.45565538,1957.8,1957.4,1.75065936]
[1772961002728,0.45565538,1957.8,1957.5,0.0011]
[1772961007972,0.49522164,1957.9,1957.5,0.4551946]
[1772961008843,0.001,1957.9,1957.5,0.4551946]
[1772961010978,0.001,1957.9,1957.6,1.73116856]
[1772961013476,0.001,1957.9,1957.7,0.4540946]
[1772961014744,0.001,1957.9,1957.6,0.4551946]
[1772961014947,0.001,1957.8,1957.6,0.4551946]
[1772961017084,0.001,1957.8,1957.7,1.73110333]
[1772961018667,0.00153886,1958.0,1957.8,0.4540946]
[1772961020889,0.49422164,1958.4,1957.9,0.4540946]
[1772961022283,0.49422164,1958.5,1957.9,0.4540946]
[1772961025268,0.49422164,1958.5,1957.8,1.27692448]
[1772961025269,0.49422164,1958.4,1958.0,1.73090767]
[1772961027900,0.49522164,1958.4,1958.0,1.73090767]
[1772961028891,0.49522164,1958.4,1958.1,0.4540946]
[1772961029768,0.49522164,1958.4,1958.2,1.27668266]
[1772961030301,0.001,1958.4,1958.2,1.73077726]
[1772961031104,0.001,1958.4,1958.2,0.4540946]
[1772961031772,0.001,1958.4,1958.2,1.73073424]
[1772961033606,0.47791354,1958.4,1958.0,0.45416922]
[1772961033906,0.47791354,1958.4,1958.1,1.27674786]
[1772961034106,0.47791354,1958.4,1958.1,1.73091708]
[1772961034810,0.001,1958.4,1958.2,0.45416922]
[1772961039481,0.001,1958.4,1958.2,0.45516922]
[1772961039807,0.002,1958.3,1958.2,0.45516922]
[1772961041714,0.001,1958.4,1958.2,0.45516922]
[1772961041715,0.002,1958.6,1958.3,0.45416922]
[1772961043613,0.47891354,1958.6,1958.3,0.45416922]
[1772961044416,0.47891354,1958.6,1958.3,1.73076305]
[1772961046109,0.002,1958.6,1958.4,0.45416922]
[1772961046284,0.47891354,1958.6,1958.3,1.73076305]
[1772961046610,0.002,1958.6,1958.3,1.73076305]
[1772961047294,0.002,1958.6,1958.4,0.45416922]
[1772961048507,0.002,1958.6,1958.4,1.73070373]
[1772961048711,0.002,1958.8,1958.5,0.45416922]
[1772961050985,0.002,1958.8,1958.4,0.45416922]
[1772961050986,0.47891354,1958.8,1958.4,0.45416922]
[1772961051288,0.47891354,1958.8,1958.3,1.73073623]
[1772961051629,0.47891354,1958.8,1958.4,0.45416922]
[1772961053922,0.47891354,1958.8,1958.6,0.001]
[1772961054107,0.002,1958.7,1958.6,0.001]
[1772961055606,0.002,1958.9,1958.6,0.4857325]
[1772961056493,0.032535,1958.9,1958.6,0.4857325]
[1772961057218,0.002,1958.9,1958.6,0.4857325]
[1772961063427,0.032535,1958.9,1958.6,0.001]
[1772961065531,1.30876224,1958.9,1958.6,0.001]
[1772961065827,0.032535,1958.9,1958.6,0.001]
[1772961066631,1.30877054,1958.9,1958.6,0.001]
[1772961067434,1.30877054,1958.9,1958.7,0.001]
[1772961067731,0.002,1958.8,1958.7,0.001]
[1772961070914,0.002,1958.8,1958.7,0.4857325]
[1772961071837,0.002,1958.8,1958.7,0.001]
[1772961075511,0.002,1958.8,1958.7,0.4857325]
[1772961077855,0.00353886,1959.0,1958.8,0.4847325]
[1772961078141,5.1367017,1959.2,1958.9,0.4847325]
[1772961078142,0.002,1959.2,1958.9,0.4847325]
[1772961078748,0.032535,1959.2,1958.9,0.4847325]
[1772961081247,0.002,1959.1,1958.9,0.4847325]
[1772961082055,0.034535,1959.4,1959.0,0.4837325]
[1772961084377,0.032535,1959.2,1958.8,0.4837325]
[1772961087356,1.30857573,1959.2,1958.9,0.4837325]
[1772961088163,5.10581739,1959.4,1958.9,0.4837325]
[1772961088164,1.30854827,1959.3,1958.9,0.4837325]
[1772961089927,0.032535,1959.2,1958.9,0.4837325]
[1772961090757,0.032535,1959.2,1958.7,0.4847325]
[1772961092186,1.30863116,1959.1,1958.7,0.4847325]
[1772961092664,0.032535,1959.0,1958.7,0.4847325]
[1772961093038,0.032535,1959.0,1958.8,0.001]
[1772961094541,1.30872118,1959.0,1958.8,0.001]
[1772961100690,1.27618618,1959.0,1958.8,0.001]
[1772961100893,1.30872118,1959.0,1958.8,0.001]
[1772961101387,0.032535,1958.9,1958.8,0.001]
[1772961102795,1.3086963,1959.0,1958.8,0.001]
[1772961103458,5.10639286,1959.1,1958.8,0.49182892]
[1772961103459,1.27810594,1959.1,1958.8,0.49182892]
[1772961103658,0.032535,1959.0,1958.8,0.001]
[1772961105082,1.3086963,1959.0,1958.9,0.001]
[1772961106669,1.2761613,1959.0,1958.9,0.001]
[1772961107181,0.002,1959.1,1958.9,0.49182892]
[1772961109503,0.46038628,1959.1,1958.8,0.001]
[1772961110704,0.46038628,1959.1,1958.8,0.49182892]
[1772961111502,1.2761613,1959.0,1958.8,0.49182892]
[1772961113310,1.27810122,1959.1,1958.8,0.49182892]
[1772961113605,0.002,1959.1,1958.8,0.49182892]
[1772961114303,0.46038628,1959.1,1958.8,0.17309338]
[1772961116611,0.46038628,1959.1,1958.9,0.001]
[1772961116782,0.002,1959.0,1958.9,0.001]
[1772961117379,0.002,1959.0,1958.9,0.49182892]
[1772961117604,0.002,1959.2,1958.9,0.49182892]
[1772961120615,0.002,1959.3,1959.0,0.49082892]
[1772961120812,0.00153886,1960.0,1959.0,0.49082892]
[1772961121121,0.45838628,1960.0,1959.0,0.49236778]
[1772961122080,1.47195467,1960.0,1959.0,0.49236778]
[1772961122277,0.45838628,1959.7,1959.0,0.00153886]
[1772961122483,0.49621593,1959.3,1959.0,0.00153886]
[1772961124315,0.49621593,1959.3,1959.0,0.49399562]
[1772961124608,1.77222936,1959.3,1959.0,0.49399562]
[1772961124915,1.27601343,1959.3,1959.0,0.49399562]
[1772961125412,0.45026177,1959.2,1959.0,0.00153886]
[1772961125804,1.27601343,1959.3,1959.0,0.49399562]
[1772961126393,1.7262123,1959.4,1959.0,0.49399562]
[1772961126613,6.58041988,1959.5,1959.0,0.49399562]
[1772961127293,7.03068165,1959.5,1959.0,0.49399562]
[1772961128519,3.20309744,1959.5,1959.0,0.49399562]
[1772961128723,3.20309744,1959.5,1959.1,0.49345676]
[1772961129025,0.45026177,1959.4,1959.1,0.49345676]
[1772961130221,0.45026177,1959.4,1959.1,0.001]
[1772961130824,1.72622767,1959.3,1959.1,0.001]
[1772961131035,0.45026177,1959.2,1959.1,0.001]
[1772961133732,1.7262928,1959.2,1959.1,0.001]
[1772961136640,0.45026177,1959.1,1958.8,0.49345676]
[1772961137138,1.7262928,1959.2,1958.8,0.49345676]
[1772961141711,1.27606838,1959.2,1958.8,0.49345676]
[1772961142037,1.27606838,1959.2,1958.9,0.001]
[1772961142211,1.27606838,1959.2,1959.0,0.49245676]
[1772961142610,1.72633015,1959.2,1958.9,0.49345676]
[1772961142938,0.45026177,1959.1,1958.9,0.001]
[1772961143439,1.2761613,1959.0,1958.9,0.001]
[1772961143836,1.72642307,1959.0,1958.9,0.001]
[1772961145244,1.72641,1959.1,1958.9,0.001]
[1772961145421,1.27614823,1959.1,1958.9,0.49345676]
[1772961147285,0.45026177,1959.4,1958.9,0.49345676]
[1772961147440,5.10332463,1959.6,1959.0,0.49245676]
[1772961147441,3.22709744,1959.5,1959.0,0.49245676]
[1772961147742,1.27583567,1959.5,1959.1,0.49245676]
[1772961147938,1.72605963,1959.6,1959.1,0.49245676]
[1772961148240,1.27579786,1959.6,1959.1,0.49245676]
[1772961151020,0.45026177,1959.6,1959.1,0.49245676]
[1772961151428,0.45026177,1959.6,1959.3,0.49245676]
[1772961151623,1.27570546,1959.7,1959.3,0.49245676]
[1772961151828,1.72596723,1959.7,1959.3,0.49245676]
[1772961153144,1.27758839,1959.9,1959.4,0.46121624]
[1772961153727,0.002,1959.9,1959.4,0.46121624]
[1772961154149,1.27757981,1959.9,1959.4,0.46121624]
[1772961154329,0.002,1959.6,1959.4,0.46121624]
[1772961154529,0.002,1959.8,1959.4,0.46121624]
[1772961155926,0.002,1959.8,1959.5,0.46121624]
[1772961156149,0.002,1959.9,1959.5,0.46121624]
[1772961157521,0.00353886,1960.0,1959.5,0.46121624]
[1772961158136,0.00353886,1960.0,1959.7,0.46121624]
[1772961158549,0.45820819,1960.2,1959.7,0.46121624]
[1772961159061,1.27738591,1960.2,1959.7,0.46121624]
[1772961159228,1.27738636,1960.2,1959.7,0.46121624]
[1772961160250,1.27738453,1960.2,1959.8,0.46121624]
[1772961160450,0.45620819,1960.1,1959.6,0.46121624]
[1772961161046,0.45620819,1960.1,1959.2,0.46121624]
[1772961161842,0.40620819,1960.1,1959.3,0.46121624]
[1772961163225,0.45620819,1959.9,1959.3,0.46121624]
[1772961164552,1.27547382,1960.1,1959.4,0.46121624]
[1772961165930,1.27547382,1960.1,1959.6,0.46121624]
[1772961166963,0.45620819,1960.1,1959.6,0.46121624]
[1772961167543,0.002,1960.0,1959.6,0.46121624]
[1772961167864,1.27536232,1960.3,1959.5,0.46121624]
[1772961168059,1.73150478,1960.4,1959.6,0.46121624]
[1772961168268,1.27529659,1960.4,1959.6,0.46121624]
[1772961168476,1.73150478,1960.4,1959.6,0.46121624]
[1772961168962,0.002,1960.3,1959.6,0.46121624]
[1772961170046,0.002,1960.3,1959.7,1.27570546]
[1772961170370,0.45820819,1960.3,1959.8,0.46121624]
[1772961173471,0.45620819,1960.4,1960.0,0.46121624]
[1772961176658,1.7314664,1960.4,1960.0,0.46121624]
[1772961176841,0.45620819,1960.3,1960.0,0.46121624]
[1772961178574,1.27525065,1960.4,1960.1,0.46121624]
[1772961178871,0.45620819,1960.4,1960.1,0.46121624]
[1772961179676,0.45620819,1960.4,1959.9,0.46121624]
[1772961180846,0.002,1960.2,1959.9,1.73673854]
[1772961181163,0.002,1960.2,1960.0,0.46121624]
[1772961181343,0.45820819,1960.3,1960.0,0.46121624]
[1772961182180,0.45820819,1960.3,1959.8,0.46121624]
[1772961183260,1.73356601,1960.3,1959.9,0.45059592]
[1772961184575,1.27735782,1960.3,1959.9,0.45059592]
[1772961185074,1.73510786,1960.3,1959.9,0.45059592]
[1772961186578,0.45975004,1960.3,1960.0,0.46533166]
[1772961186971,1.73507457,1960.3,1960.0,0.46533166]
[1772961187361,1.73506606,1960.3,1960.0,0.46533166]
[1772961189868,0.45775004,1960.2,1959.8,0.46533166]
[1772961190884,0.45775004,1960.2,1959.7,0.001]
[1772961191081,0.45775004,1960.2,1959.7,0.46633166]
[1772961192084,1.27544513,1960.1,1959.7,0.46633166]
[1772961192312,1.73319517,1960.1,1959.7,0.46633166]
[1772961193085,0.45775004,1960.0,1959.7,0.001]
[1772961193579,0.45775004,1960.0,1959.7,0.46633166]
[1772961194284,1.73330466,1960.0,1959.7,0.46633166]
[1772961194789,1.73330466,1960.0,1959.8,0.001]
[1772961196015,0.45775004,1960.0,1959.8,0.001]
[1772961196179,1.7332209,1960.1,1959.8,0.001]
[1772961200000,1.27547086,1960.1,1959.8,0.001]
[1772961200200,0.45775004,1960.0,1959.8,0.001]
[1772961201682,0.45975004,1960.2,1959.8,0.001]
[1772961202080,0.45975004,1960.2,1959.8,0.46633166]
[1772961204313,0.45775004,1960.1,1959.8,0.46633166]
[1772961205820,1.27739651,1960.2,1959.8,0.46633166]
[1772961206522,1.73514655,1960.2,1959.8,0.46633166]
[1772961207491,0.002,1960.2,1959.9,0.46533166]
[1772961208006,0.45975004,1960.2,1959.9,0.46533166]
[1772961208207,0.002,1960.2,1959.9,0.46633166]
[1772961208411,0.002,1960.1,1959.9,0.46633166]
[1772961210528,0.45775004,1960.0,1959.9,0.001]
[1772961212031,0.002,1960.1,1959.9,0.001]
[1772961212341,0.45975004,1960.1,1959.9,0.001]
[1772961212494,1.2755102,1960.0,1959.9,0.001]
[1772961212825,0.45936678,1959.9,1959.7,0.001]
[1772961214702,1.27744936,1960.1,1959.7,0.46352978]
[1772961215113,0.002,1960.1,1959.7,0.46352978]
[1772961215499,0.46136678,1960.1,1959.7,0.46352978]
[1772961216015,0.002,1960.1,1959.7,0.46352978]
[1772961216213,0.45936678,1960.4,1959.8,0.46252978]
[1772961216738,0.45936678,1960.4,1960.0,0.46252978]
[1772961216942,1.73460374,1960.5,1960.0,0.46252978]
[1772961217947,0.45936678,1960.5,1960.0,0.46252978]
[1772961218147,1.505,1960.7,1960.0,0.46252978]
[1772961218148,1.73443088,1960.7,1960.0,0.46252978]
[1772961218510,0.45936678,1960.6,1960.0,0.46252978]
[1772961219331,0.45936678,1960.6,1960.2,0.46252978]
[1772961219646,6.3,1961.8,1960.5,0.46252978]
[1772961219849,1.44256926,1961.4,1960.7,0.46252978]
[1772961220011,0.98320248,1961.4,1960.7,0.46252978]
[1772961220336,0.45936678,1961.2,1960.7,0.46252978]
[1772961220557,0.45936678,1961.2,1960.4,0.46252978]
[1772961220736,1.32589874,1961.5,1960.4,0.46252978]
[1772961220737,0.45936678,1961.0,1960.4,0.46252978]
[1772961221226,0.98320248,1960.9,1960.4,0.46252978]
[1772961221434,1.2749898,1960.8,1960.4,0.46252978]
[1772961222644,0.002,1960.5,1960.4,0.46252978]
[1772961222843,0.98320248,1960.8,1960.5,0.46252978]
[1772961223043,0.98320248,1960.7,1960.5,0.46252978]
[1772961223416,0.002,1960.8,1960.5,0.46252978]
[1772961223616,1.27703575,1960.8,1960.5,0.46252978]
[1772961224416,1.78524613,1961.5,1960.5,0.46252978]
[1772961224634,0.45936678,1961.4,1960.5,0.46252978]
[1772961225264,0.98320248,1961.3,1960.5,0.46252978]
[1772961225649,0.98320248,1961.2,1960.7,0.46252978]
[1772961226630,1.27459977,1961.4,1960.7,0.46252978]
[1772961227225,0.98320248,1961.3,1960.7,0.46252978]
[1772961227426,1.32584556,1961.5,1960.7,0.46252978]
[1772961227749,1.32585785,1961.5,1960.9,0.46252978]
[1772961228046,1.27455785,1961.5,1960.9,0.46252978]
[1772961228678,1.274514,1961.6,1960.9,0.46252978]
[1772961229670,5.09767982,1961.7,1960.9,1.73740399]
[1772961229671,5.5570466,1961.7,1960.9,1.73740399]
[1772961229991,5.5570466,1961.7,1961.0,0.46252978]
[1772961230198,5.09767982,1961.7,1961.0,0.46252978]
[1772961230494,0.45936678,1961.6,1961.0,0.46252978]
[1772961231985,1.27453479,1961.5,1961.0,0.46252978]
[1772961232183,1.27441725,1961.7,1961.1,0.46252978]
[1772961232496,1.73515889,1962.0,1961.1,0.46252978]
[1772961232683,1.27579211,1962.0,1961.1,0.46252978]
[1772961233063,1.27579211,1962.0,1961.2,0.46252978]
[1772961233957,0.00153886,1962.0,1961.3,1.27466476]
[1772961234196,0.00153886,1962.0,1961.4,0.46252978]
[1772961234597,0.46090564,1962.0,1961.4,0.46252978]
[1772961235698,0.002,1961.9,1961.4,0.46252978]
[1772961235860,0.00153886,1962.0,1961.2,1.27472595]
[1772961235861,0.00153886,1962.0,1961.3,0.46252978]
[1772961236068,0.00353886,1962.0,1961.4,0.46252978]
[1772961236474,0.46290564,1962.0,1961.4,0.46252978]
[1772961237896,0.46290564,1962.0,1961.2,0.46252978]
[1772961238224,0.45936678,1961.8,1961.2,0.46252978]
[1772961240015,1.27440485,1961.7,1961.2,0.46252978]
[1772961240809,1.73377163,1961.7,1961.2,0.46252978]
[1772961241129,1.27440485,1961.7,1961.2,0.46252978]
[1772961244126,1.27774884,1962.0,1961.2,0.46252978]
[1772961244420,0.47197258,1961.9,1961.3,0.49437226]
[1772961244926,1.27774884,1962.0,1961.3,0.49437226]
[1772961245500,1.74972142,1962.0,1961.3,0.49437226]
[1772961245922,0.00353886,1962.0,1961.3,0.49437226]
[1772961246226,1.27382044,1962.6,1961.6,0.49437226]
[1772961246522,0.47197258,1962.5,1961.6,0.49437226]
[1772961247223,1.27382044,1962.6,1961.6,0.49437226]
[1772961247399,0.47197258,1962.5,1961.6,0.49437226]
[1772961248211,1.74592284,1962.4,1961.7,0.49437226]
[1772961248739,1.27395026,1962.4,1961.7,0.49437226]
[1772961249123,0.002,1961.9,1961.7,0.49437226]
[1772961249322,1.74592284,1962.4,1961.7,0.49437226]
[1772961249517,0.47197258,1962.3,1961.7,0.49437226]
[1772961249722,0.47197258,1962.7,1961.7,0.49437226]
[1772961249941,0.05221806,1962.9,1961.7,0.49437226]
[1772961250241,2.68730892,1963.7,1962.5,0.49437226]
[1772961250540,0.47197258,1963.6,1962.5,0.49437226]
[1772961250898,0.42197258,1963.6,1962.4,0.55990826]
[1772961251306,0.47197258,1963.9,1962.4,0.55990826]
[1772961252122,5.09344781,1964.0,1962.4,0.55990826]
[1772961252311,5.56542039,1964.0,1962.6,0.49437226]
[1772961252541,0.47197258,1963.9,1962.6,0.49437226]
[1772961252973,0.47197258,1963.7,1962.3,0.49437226]
[1772961253640,0.47197258,1963.6,1962.1,0.49437226]
[1772961253840,0.47197258,1963.4,1962.1,0.49437226]
[1772961254241,1.27336627,1963.3,1962.1,0.49437226]
[1772961254439,0.47197258,1963.2,1962.1,0.49437226]
[1772961254841,1.27336627,1963.3,1962.2,0.49437226]
[1772961255477,1.27334688,1963.4,1962.2,0.49437226]
[1772961255844,1.27310689,1963.7,1962.4,0.49437226]
[1772961256064,1.27310689,1963.7,1962.6,0.49437226]
[1772961256311,1.27310689,1963.7,1962.5,6.23843602]
[1772961256469,1.27310689,1963.7,1962.7,0.49437226]
[1772961256988,3.96041581,1963.7,1962.5,0.49437226]
[1772961257774,1.27310689,1963.7,1962.5,0.49437226]
[1772961258690,5.09324011,1964.0,1962.7,0.49437226]
[1772961258867,2.68730892,1963.8,1962.7,0.49437226]
[1772961259056,0.47197258,1963.7,1962.7,0.49437226]
[1772961259677,0.47197258,1963.9,1962.7,0.49437226]
[1772961260190,0.00153886,1964.0,1962.8,0.065536]
[1772961260346,0.47351144,1964.0,1962.9,0.49437226]
[1772961261357,1.27297723,1963.9,1963.1,0.49437226]
[1772961261559,0.00153886,1964.0,1963.1,0.49437226]
[1772961261756,1.27447791,1964.0,1963.1,0.49437226]
[1772961263697,0.00153886,1964.0,1963.1,1.27344548]
[1772961263898,0.00153886,1964.0,1963.2,0.49437226]
[1772961264664,0.47351144,1964.0,1963.2,0.49437226]
[1772961265659,1.27297723,1963.9,1963.2,0.49437226]
[1772961265865,0.00153886,1964.0,1963.3,0.49437226]
[1772961266162,1.27446213,1964.0,1963.3,0.49437226]
[1772961266500,0.47197258,1963.9,1963.3,0.49437226]
[1772961267267,0.47197258,1963.9,1963.1,1.27345209]
[1772961267268,0.47197258,1963.9,1963.1,0.49437226]
[1772961268126,1.27304206,1963.8,1963.1,0.49437226]
[1772961269228,0.47197258,1963.7,1962.9,0.49437226]
[1772961270198,0.47197258,1963.5,1962.9,0.49437226]
[1772961271815,0.47197258,1963.5,1962.7,1.76907975]
[1772961272021,0.47197258,1963.5,1962.8,0.49437226]
[1772961272834,1.74526823,1963.5,1963.0,0.49264931]
[1772961273037,1.27329565,1963.5,1963.0,0.49264931]
[1772961273333,1.27323348,1963.6,1963.0,0.49264931]
[1772961273510,5.09191803,1963.9,1963.0,0.49264931]